fUST/lending_fUST_20240523
["ID","MTS","AMOUNT","RATE_DAILY","PERIOD"]
[327772606,1716469841381,-175.330847,0.0002,2]
[327772607,1716469841391,-151.0,0.0002,2]
[327772608,1716469841400,-151.0,0.0002,2]
[327772609,1716469841409,-151.0,0.0002,2]
[327772610,1716469841419,-209.836698,0.0002,2]
[327772611,1716469841428,-151.0,0.0002,2]
[327772612,1716469841438,-151.0,0.0002,2]
[327772613,1716469841449,-151.0,0.0002,2]
[327772614,1716469841458,-151.0,0.0002,2]
[327772615,1716469841468,-151.0,0.0002,2]
[327772616,1716469841478,-151.0,0.0002,2]
[327772617,1716469841487,-224.995412,0.0002,2]
[327772618,1716469841496,-151.0,0.0002,2]
[327772619,1716469841506,-151.0,0.0002,2]
[327772620,1716469841515,-151.0,0.0002,2]
[327772621,1716469841525,-151.0,0.0002,2]
[327772622,1716469841534,-151.0,0.0002,2]
[327772623,1716469841544,-392.49524718,0.000203,2]
[327772624,1716469841553,-354.69862029,0.00020433,2]
[327772625,1716469841562,-1755.16959248,0.000205,5]
[327772626,1716469841572,-151.0,0.000205,2]
[327772627,1716469841581,-151.0,0.000205,2]
[327772628,1716469841590,-151.0,0.000205,2]
[327772629,1716469841599,-151.0,0.000205,2]
[327772630,1716469841611,-151.0,0.000205,2]
[327772631,1716469841620,-312.298624,0.00020548,2]
[327772632,1716469841630,-583.89351719,0.0002066,7]
[327772633,1716469841640,-1127.16018528,0.00020912,2]
[327772634,1716469841649,-155.04341216,0.00020912,2]
[327772635,1716469841659,-456.1683123,0.00020912,2]
[327772636,1716469841668,-237.41197844,0.00021,2]
[327772637,1716469841677,-197.92000035,0.00021,2]
[327772638,1716469841687,-10044.09061005,0.00021,2]
[327772639,1716469841698,-4694.88024875,0.00021,2]
[327772640,1716469841708,-280.0,0.00021,2]
[327772641,1716469841717,-20190.12613534,0.00021,2]
[327772642,1716469841727,-151.0,0.00021,2]
[327772643,1716469841736,-724.963052,0.00021,2]
[327772644,1716469841745,-724.963052,0.00021,2]
[327772645,1716469841754,-151.0,0.00021,2]
[327772646,1716469841763,-503.95,0.00021,2]
[327772647,1716469841773,-223.473506,0.00021,2]
[327772648,1716469841782,-223.473506,0.00021,2]
[327772649,1716469841792,-175.330847,0.00021,2]
[327772650,1716469841801,-175.330847,0.00021,2]
[327772651,1716469841811,-151.0,0.00021,2]
[327772652,1716469841821,-151.0,0.00021,2]
[327772653,1716469841830,-151.0,0.00021,2]
[327772654,1716469841936,-151.0,0.00021,2]
[327772655,1716469841947,-151.0,0.00021,2]
[327772656,1716469841956,-151.0,0.00021,2]
[327772657,1716469841965,-151.0,0.00021,2]
[327772658,1716469841975,-151.0,0.00021,2]
[327772659,1716469841984,-166.666666,0.00021918,2]
[327772660,1716469841994,-10000.0,0.00021918,2]
[327772661,1716469842003,-151.0,0.00021918,2]
[327772662,1716469842012,-151.0,0.00021918,2]
[327772663,1716469842022,-151.0,0.00021918,2]
[327772664,1716469842031,-151.0,0.00021918,2]
[327772665,1716469842040,-151.0,0.00021918,2]
[327772666,1716469842049,-151.0,0.00021918,2]
[327772667,1716469842059,-151.0,0.00021918,2]
[327772668,1716469842069,-151.0,0.00021918,2]
[327772669,1716469842078,-153.0,0.00022192,2]
[327772670,1716469842087,-153.0,0.00022192,2]
[327772671,1716469842097,-153.0,0.00022192,2]
[327772672,1716469842106,-153.0,0.00022192,2]
[327772674,1716469842118,-153.0,0.00022192,2]
[327772675,1716469842127,-153.0,0.00022192,2]
[327772676,1716469842136,-153.0,0.00022192,2]
[327772677,1716469842146,-153.0,0.00022192,2]
[327772678,1716469842155,-153.0,0.00022192,2]
[327772679,1716469842165,-153.0,0.00022192,2]
[327772680,1716469842178,-5298.18473217,0.000223,6]
[327772681,1716469842189,-160.0,0.00022386,2]
[327772682,1716469842198,-166.666666,0.00022431,2]
[327772683,1716469842207,-151.0,0.00022445,3]
[327772684,1716469842219,-151.0,0.00022445,3]
[327772685,1716469842228,-378.98401605,0.00022934,2]
[327772686,1716469842238,-166.666666,0.00022944,2]
[327772687,1716469842248,-248.05806,0.00023014,2]
[327772688,1716469842258,-153.0,0.00023014,2]
[327772689,1716469842268,-153.0,0.00023014,2]
[327772690,1716469842277,-153.0,0.00023014,2]
[327772691,1716469842287,-153.0,0.00023014,2]
[327772692,1716469842296,-153.0,0.00023014,2]
[327772693,1716469842305,-153.0,0.00023123,2]
[327772694,1716469842315,-153.0,0.00023123,2]
[327772695,1716469842324,-609.502,0.00023168,2]
[327772696,1716469842333,-221.023,0.00023168,2]
[327772697,1716469842343,-151.0226534,0.0002319,7]
[327772698,1716469842352,-151.0,0.00023443,3]
[327772699,1716469842365,-151.0,0.00023443,3]
[327772700,1716469842374,-354.69862029,0.0002345,2]
[327772701,1716469842384,-166.666666,0.00023456,2]
[327772702,1716469842394,-154.6815881,0.00023562,2]
[327772703,1716469842403,-153.0,0.00023562,2]
[327772704,1716469842413,-153.0,0.00023562,2]
[327772705,1716469842422,-153.0,0.00023562,2]
[327772706,1716469842431,-153.0,0.00023562,2]
[327772707,1716469842441,-151.0226534,0.00023663,4]
[327772708,1716469842451,-1515.77233961,0.000239,2]
[327772709,1716469842460,-166.666666,0.00023969,2]
[327772710,1716469842469,-151.0226534,0.00024146,2]
[327772711,1716469842478,-151.0,0.00024164,2]
[327772712,1716469842488,-724.963052,0.00024164,2]
[327772713,1716469842497,-724.963052,0.00024164,2]
[327772714,1716469842507,-151.0,0.00024164,2]
[327772715,1716469842516,-223.473506,0.00024164,2]
[327772716,1716469842525,-223.473506,0.00024164,2]
[327772717,1716469842536,-175.330847,0.00024164,2]
[327772718,1716469842546,-175.330847,0.00024164,2]
[327772719,1716469842555,-151.0,0.00024164,2]
[327772720,1716469842565,-151.0,0.00024164,2]
[327772721,1716469842574,-176.871,0.00024164,2]
[327772722,1716469842583,-450.484344,0.00024384,2]
[327772723,1716469842593,-591.0,0.000244,2]
[327772724,1716469842603,-151.0,0.00024441,5]
[327772725,1716469842619,-151.0,0.00024441,5]
[327772726,1716469842629,-227.781,0.00024458,2]
[327772727,1716469842638,-243.134,0.00024458,2]
[327772728,1716469842647,-150.553,0.00024458,2]
[327772729,1716469842657,-166.666666,0.00024482,2]
[327772730,1716469842667,-200.0,0.00024658,15]
[327772731,1716469842676,-151.0,0.00024658,2]
[327772732,1716469842686,-629.99624446,0.00024731,2]
[327772733,1716469842695,-151.0,0.00024731,2]
[327772734,1716469842704,-151.0,0.00024731,2]
[327772735,1716469842713,-3028.09150096,0.000248,7]
[327772736,1716469842722,-151.0,0.000248,2]
[327772737,1716469842731,-151.0,0.000248,2]
[327772738,1716469842740,-151.0,0.000248,2]
[327772739,1716469842750,-151.0,0.000248,2]
[327772740,1716469842759,-9229.48463441,0.00025,2]
[327772741,1716469842768,-27954.74089477,0.00025,2]
[327772742,1716469842777,-107560.0,0.00025,2]
[327772743,1716469842787,-167.4232435,0.00025,2]
[327772744,1716469842796,-500.0,0.00025,2]
[327772745,1716469842805,-500.0,0.00025,2]
[327772746,1716469842814,-151.0,0.00025,2]
[327772747,1716469842823,-151.0,0.00025,2]
[327772748,1716469842831,-724.963052,0.00025,2]
[327772749,1716469842841,-724.963052,0.00025,2]
[327772751,1716469842852,-724.963052,0.00025,2]
[327772753,1716469842870,-724.963052,0.00025,2]
[327772754,1716469842882,-1534.55198847,0.00025,2]
[327772755,1716469842893,-151.0,0.00025,2]
[327772756,1716469842904,-151.0,0.00025,2]
[327772757,1716469842915,-223.473506,0.00025,2]
[327772758,1716469842926,-223.473506,0.00025,2]
[327772759,1716469842936,-223.473506,0.00025,2]
[327772760,1716469842946,-223.473506,0.00025,2]
[327772761,1716469842956,-175.330847,0.00025,2]
[327772762,1716469842966,-175.330847,0.00025,2]
[327772763,1716469842976,-175.330847,0.00025,2]
[327772764,1716469842985,-175.330847,0.00025,2]
[327772765,1716469842994,-151.0,0.00025,2]
[327772766,1716469843004,-151.0,0.00025,2]
[327772767,1716469843013,-151.0,0.00025,2]
[327772768,1716469843023,-151.0,0.00025,2]
[327772769,1716469843032,-151.0,0.00025,2]
[327772770,1716469843042,-151.0,0.00025,2]
[327772771,1716469843051,-151.0,0.00025,2]
[327772772,1716469843061,-151.0,0.00025,2]
[327772773,1716469843070,-151.0,0.00025,2]
[327772774,1716469843079,-151.0,0.00025,2]
[327772775,1716469843089,-151.0,0.00025,2]
[327772776,1716469843098,-151.0,0.00025,2]
[327772777,1716469843108,-151.0,0.00025,2]
[327772778,1716469843122,-151.0,0.00025,2]
[327772779,1716469843132,-151.0,0.00025,2]
[327772780,1716469843141,-151.0,0.00025,2]
[327772781,1716469843150,-180.93235342,0.00025,2]
[327772782,1716469843159,-150.0,0.0002528,8]
[327772783,1716469843170,-151.0,0.00025439,5]
[327772784,1716469843186,-151.0,0.00025439,5]
[327772785,1716469843196,-291.3463721,0.00025479,2]
[327772786,1716469843206,-291.5019197,0.00025479,2]
[327772787,1716469843215,-450.9467829,0.00025479,2]
[327772788,1716469843227,-152.0,0.00025806,2]
[327772789,1716469843236,-620.49981222,0.00025968,2]
[327772790,1716469843246,-2000.000001,0.00026,2]
[327772791,1716469843255,-1000.0,0.00026,5]
[327772792,1716469843264,-6897.24760705,0.00026,2]
[327772793,1716469843274,-496.0,0.00026168,2]
[327772794,1716469843283,-291.3463721,0.00026301,2]
[327772795,1716469843292,-291.5019197,0.00026301,2]
[327772798,1716469843302,-291.5019197,0.00026301,2]
[327772799,1716469843311,-291.561811,0.00026301,2]
[327772800,1716469843320,-456.49011547,0.00026366,2]
[327772801,1716469843330,-155.01240099,0.00026366,2]
[327772803,1716469843339,-760.80625083,0.00026366,2]
[327772805,1716469843349,-3980.09499401,0.00026366,2]
[327772807,1716469843358,-11973.29174079,0.00026366,2]
[327772809,1716469843371,-3000.0,0.00026366,2]
[327772810,1716469843380,-151.0,0.00026366,2]
[327772811,1716469843389,-151.0,0.00026366,2]
[327772812,1716469843398,-151.0,0.00026366,2]
[327772813,1716469843493,-151.0,0.00026366,2]
[327772814,1716469843503,-151.0,0.00026366,2]
[327772815,1716469843515,-254.0850998,0.00026399,2]
[327772816,1716469843527,-418.0,0.000264,2]
[327772817,1716469843538,-151.0,0.00026437,5]
[327772818,1716469843550,-151.0,0.00026437,5]
[327772819,1716469843561,-354.69862029,0.00026466,2]
[327772820,1716469843572,-25416.67952222,0.00026499,2]
[327772821,1716469843582,-151.0,0.00026499,2]
[327772822,1716469843593,-724.963052,0.00026499,2]
[327772823,1716469843603,-724.963052,0.00026499,2]
[327772824,1716469843618,-151.0,0.00026499,2]
[327772825,1716469843628,-223.473506,0.00026499,2]
[327772826,1716469843638,-223.473506,0.00026499,2]
[327772827,1716469843647,-175.330847,0.00026499,2]
[327772828,1716469843657,-175.330847,0.00026499,2]
[327772829,1716469843666,-151.0,0.00026499,2]
[327772830,1716469843676,-151.0,0.00026499,2]
[327772831,1716469843686,-173.84602732,0.000265,2]
[327772832,1716469843695,-365.04735832,0.000265,2]
[327772833,1716469843705,-21028.0723206,0.000265,2]
[327772898,1716469845365,-2054.77535038,0.000265,2]
[327772900,1716469845377,-11802.79636614,0.000265,2]
[327772915,1716469849579,-189.79554045,0.00020913,2]
[327772920,1716469849590,-9403.91722042,0.00020913,2]
[327772926,1716469849599,-71480.34342654,0.000265,2]
[327772931,1716469849611,-275.2258043,0.000265,2]
[327772976,1716469849785,-6930.6,0.000265,2]
[327773023,1716469850237,-3475.15,0.00026499,2]
[327773027,1716469853679,-385.72997098,0.00026498,2]
[327773029,1716469853689,-1204.85,0.00026499,2]
[327773031,1716469853699,-16322.66622089,0.00026499,2]
[327773033,1716469853708,-2492.47326874,0.00026499,2]
[327773034,1716469853719,-185386.46754005,0.000265,2]
[327773035,1716469853730,-8620.81518954,0.000265,2]
[327773036,1716469866939,589.78347727,0.00013699,2]
[327773040,1716469988892,717.0,0.00013699,2]
[327773041,1716470083548,3373.78266972,0.00013699,2]
[327773043,1716470110625,3373.78266972,0.00013699,2]
[327773044,1716470214510,1980.15332941,0.00013699,2]
[327773136,1716471038210,1516.1205736,0.00014091,2]
[327773147,1716471038863,-3900.0,0.00014416,2]
[327773148,1716471038875,-9403.91722042,0.00014417,2]
[327773149,1716471038885,-2619.58015895,0.0001442,2]
[327773150,1716471038897,-16530.19670435,0.0001442,2]
[327773151,1716471038909,-658.68785872,0.0001442,2]
[327773164,1716471041552,-5091.53527798,0.0001442,2]
[327773165,1716471041561,-36197.7333234,0.00015117,2]
[327773166,1716471041572,-155.28330588,0.00015363,2]
[327773167,1716471041583,-3900.64855191,0.00016686,2]
[327773168,1716471041593,-1076.00037882,0.00016745,2]
[327773169,1716471041602,-302.38073973,0.00016745,2]
[327773170,1716471041615,-410.5949292,0.00016746,2]
[327773171,1716471041624,-156.4485373,0.00016747,2]
[327773172,1716471041633,-1031.89108919,0.00017688,2]
[327773173,1716471041643,-189.69827781,0.00017688,2]
[327773174,1716471041652,-1450.9824822,0.00017787,2]
[327773175,1716471041663,-658.33611615,0.00017788,2]
[327773176,1716471041673,-1400.79422212,0.00017788,2]
[327773215,1716471046358,-316.82962402,0.00017788,2]
[327773217,1716471046372,-909.92037244,0.00017788,2]
[327773218,1716471046382,-684.8282798,0.00017789,2]
[327773219,1716471046392,-29174.39797337,0.00017789,2]
[327773224,1716471234037,-3547.99,0.00014418,2]
[327773229,1716471433782,23151.16400818,0.000268,120]
[327773463,1716471624786,267.45853213,0.00014412,7]
[327773465,1716471639722,154.9690062,9.999e-05,2]
[327773470,1716471658223,2992.14789345,0.00018,7]
[327773522,1716471871467,652.4519146,0.00013413,2]
[327773542,1716471916483,250.0,0.00013412,2]
[327773559,1716472029383,643.28124938,0.00013412,2]
[327773560,1716472029414,14735.39666196,0.00013412,2]
[327773565,1716472070556,273.37336231,9.9e-05,2]
[327773567,1716472079493,576.98,0.00010959,2]
[327773568,1716472084597,273.37336231,9.9e-05,2]
[327773569,1716472095036,273.37336231,9.9e-05,2]
[327773572,1716472107502,1102.89991307,9.999e-05,2]
[327773573,1716472107536,5000.0,9.999e-05,2]
[327773574,1716472107578,25416.52388262,9.999e-05,2]
[327773575,1716472108055,273.37336231,9.9e-05,2]
[327773577,1716472122791,273.37336231,9.9e-05,2]
[327773627,1716472233330,-308.3,0.00013411,2]
[327773657,1716472233628,-1723.6,0.00013411,2]
[327773659,1716472233640,-9521.32208866,0.00013412,2]
[327773661,1716472233655,-430.99752676,0.00014313,2]
[327773663,1716472233667,-159.46296185,0.00014411,2]
[327773665,1716472233679,-292.65525852,0.00014411,2]
[327773667,1716472233691,-187.77864387,0.00014411,2]
[327773669,1716472233703,-21.35593894,0.00014412,2]
[327773684,1716472233723,-324.23670388,0.00014412,2]
[327773686,1716472233903,-156.4485373,0.00014412,2]
[327773688,1716472233914,-11846.90869685,0.00014413,2]
[327773690,1716472233929,-612.735,0.00014413,2]
[327773693,1716472233943,-28509.74156999,0.00014413,2]
[327773695,1716472233954,-8637.82886515,0.00014414,2]
[327773697,1716472233965,-10803.05376619,0.00014416,2]
[327773698,1716472233975,-1364.88660556,0.00014418,2]
[327773700,1716472233987,-8051.27353942,0.00015,2]
[327773819,1716472239112,-2907.02415787,0.00015,2]
[327773820,1716472239130,-375.86462864,0.00015,2]
[327773823,1716472239146,-20982.39203754,0.00015,2]
[327773824,1716472239158,-154.9690062,0.000165,2]
[327773826,1716472239171,-430.99752669,0.0001742,2]
[327773827,1716472239182,-292.7,0.000175,2]
[327773829,1716472239195,-417.48839794,0.00017503,2]
[327773831,1716472239207,-3779.77020123,0.00017525,2]
[327773832,1716472239222,-290.26081557,0.00017525,2]
[327773835,1716472239459,-155.73687651,0.00017525,2]
[327773837,1716472239471,-330.42851345,0.000176,2]
[327773838,1716472239483,-181.49361007,0.00017788,2]
[327773840,1716472239495,-942.77170322,0.00017789,2]
[327773842,1716472239507,-4077.84701894,0.00017898,2]
[327773843,1716472239521,-941.43610251,0.00017898,2]
[327773845,1716472239536,-648.0400006,0.00017898,2]
[327773847,1716472239554,-2108.0321412,0.00017898,2]
[327773849,1716472239568,-2582.55882183,0.00017898,2]
[327773850,1716472239583,-99.8193897,0.00017898,2]
[327773852,1716472239596,-231.6341903,0.00017925,2]
[327773962,1716472243497,-1622.53823398,0.00017925,2]
[327773966,1716472243513,-238.80965777,0.00017925,2]
[327773971,1716472243546,-309.84508985,0.00017925,2]
[327773976,1716472243560,-528.55641204,0.00017925,2]
[327773979,1716472243571,-1581.73856904,0.00017925,2]
[327773981,1716472243582,-3445.39467291,0.00017926,2]
[327773983,1716472243592,-738.95098462,0.00018,2]
[327773985,1716472243603,-2031.1597846,0.00018204,2]
[327773987,1716472243614,-921.28647666,0.00018988,2]
[327773989,1716472243627,-162.61642107,0.00019,2]
[327773991,1716472243639,-389.0454833,0.00019178,2]
[327774011,1716472243860,-500.0,0.00019178,2]
[327774013,1716472243873,-502.67569381,0.00019178,2]
[327774015,1716472243885,-365.30549684,0.00019178,2]
[327774017,1716472243897,-500.0,0.00019178,2]
[327774019,1716472243907,-597.10250662,0.00019178,2]
[327774021,1716472243918,-500.0,0.00019178,2]
[327774023,1716472243930,-405.12390828,0.00019178,2]
[327774025,1716472243941,-597.10250662,0.00019178,2]
[327774027,1716472243953,-500.0,0.00019178,2]
[327774029,1716472243968,-500.0,0.00019178,2]
[327774031,1716472243980,-132.96543599,0.00019178,2]
[327774053,1716472244265,-464.13707063,0.00019178,2]
[327774055,1716472244278,-500.0,0.00019178,2]
[327774057,1716472244289,-500.0,0.00019178,2]
[327774059,1716472244301,-500.0,0.00019178,2]
[327774061,1716472244312,-597.10250662,0.00019178,2]
[327774063,1716472244324,-500.0,0.00019178,2]
[327774065,1716472244335,-597.10250662,0.00019178,2]
[327774067,1716472244346,-600.0,0.00019178,2]
[327774069,1716472244358,-597.10250662,0.00019178,2]
[327774086,1716472244522,-597.10250662,0.00019178,2]
[327774088,1716472244534,-500.0,0.00019178,2]
[327774090,1716472244545,-500.0,0.00019178,2]
[327774092,1716472244572,-435.45290289,0.00019178,2]
[327774097,1716472244588,-161.64960373,0.00019178,2]
[327774101,1716472244599,-500.0,0.00019178,2]
[327774104,1716472244611,-597.10250662,0.00019178,2]
[327774108,1716472244622,-597.10250662,0.00019178,2]
[327774112,1716472244633,-500.0,0.00019178,2]
[327774115,1716472244643,-597.10250662,0.00019178,2]
[327774117,1716472244653,-500.0,0.00019178,2]
[327774119,1716472244663,-500.0,0.00019178,2]
[327774121,1716472244674,-500.0,0.00019178,2]
[327774123,1716472244684,-597.10250662,0.00019178,2]
[327774125,1716472244695,-597.10250662,0.00019178,2]
[327774127,1716472244705,-500.0,0.00019178,2]
[327774129,1716472244716,-597.10250662,0.00019178,2]
[327774130,1716472244727,-442.4905335,0.00019178,2]
[327774132,1716472244737,-597.10250662,0.00019178,2]
[327774134,1716472244747,-500.0,0.00019178,2]
[327774136,1716472244758,-500.0,0.00019178,2]
[327774138,1716472244770,-597.10250662,0.00019178,2]
[327774140,1716472244780,-597.10250662,0.00019178,2]
[327774142,1716472244792,-127.97566675,0.00019178,2]
[327774144,1716472244807,-469.12683987,0.00019178,2]
[327774146,1716472244819,-46.04285392,0.00019178,2]
[327774162,1716472245037,-551.0596527,0.00019178,2]
[327774164,1716472245052,-597.10250662,0.00019178,2]
[327774166,1716472245079,-597.10250662,0.00019178,2]
[327774167,1716472245090,-597.10250662,0.00019178,2]
[327774168,1716472245102,-597.10250662,0.00019178,2]
[327774170,1716472245113,-597.10250662,0.00019178,2]
[327774172,1716472245123,-597.10250662,0.00019178,2]
[327774174,1716472245134,-597.10250662,0.00019178,2]
[327774176,1716472245145,-597.10250662,0.00019178,2]
[327774178,1716472245155,-597.10250662,0.00019178,2]
[327774180,1716472245166,-597.10250662,0.00019178,2]
[327774182,1716472245177,-597.10250662,0.00019178,2]
[327774184,1716472245187,-597.10250662,0.00019178,2]
[327774186,1716472245198,-597.10250662,0.00019178,2]
[327774188,1716472245208,-597.10250662,0.00019178,2]
[327774190,1716472245219,-597.10250662,0.00019178,2]
[327774192,1716472245229,-597.10250662,0.00019178,2]
[327774194,1716472245240,-597.10250662,0.00019178,2]
[327774196,1716472245251,-529.96529512,0.00019178,2]
[327774198,1716472245261,-428.10717247,0.00019178,2]
[327774200,1716472245271,-585.16045649,0.00019178,2]
[327774202,1716472245281,-585.16045649,0.00019178,2]
[327774204,1716472245291,-585.16045649,0.00019178,2]
[327774206,1716472245304,-585.16045649,0.00019178,2]
[327774208,1716472245314,-585.16045649,0.00019178,2]
[327774210,1716472245324,-585.16045649,0.00019178,2]
[327774212,1716472245334,-585.16045649,0.00019178,2]
[327774214,1716472245345,-585.16045649,0.00019178,2]
[327774216,1716472245357,-585.16045649,0.00019178,2]
[327774217,1716472245367,-585.16045649,0.00019178,2]
[327774219,1716472245379,-585.16045649,0.00019178,2]
[327774221,1716472245390,-500.0,0.00019178,2]
[327774223,1716472245401,-585.16045649,0.00019178,2]
[327774225,1716472245413,-500.0,0.00019178,2]
[327774227,1716472245424,-500.0,0.00019178,2]
[327774229,1716472245435,-585.16045649,0.00019178,2]
[327774231,1716472245446,-368.97476557,0.00019178,2]
[327774233,1716472245457,-500.0,0.00019178,2]
[327774235,1716472245467,-585.16045649,0.00019178,2]
[327774237,1716472245478,-500.0,0.00019178,2]
[327774239,1716472245489,-500.0,0.00019178,2]
[327774241,1716472245500,-585.16045649,0.00019178,2]
[327774243,1716472245512,-500.0,0.00019178,2]
[327774245,1716472245524,-585.16045649,0.00019178,2]
[327774247,1716472245535,-500.0,0.00019178,2]
[327774249,1716472245547,-585.16045649,0.00019178,2]
[327774251,1716472245557,-500.0,0.00019178,2]
[327774253,1716472245568,-500.0,0.00019178,2]
[327774255,1716472245579,-585.16045649,0.00019178,2]
[327774257,1716472245589,-585.16045649,0.00019178,2]
[327774259,1716472245617,-500.0,0.00019178,2]
[327774261,1716472245628,-500.0,0.00019178,2]
[327774263,1716472245638,-500.0,0.00019178,2]
[327774265,1716472245648,-585.16045649,0.00019178,2]
[327774267,1716472245659,-585.16045649,0.00019178,2]
[327774269,1716472245669,-500.0,0.00019178,2]
[327774271,1716472245679,-500.0,0.00019178,2]
[327774273,1716472245690,-585.16045649,0.00019178,2]
[327774275,1716472245701,-585.16045649,0.00019178,2]
[327774278,1716472245714,-500.0,0.00019178,2]
[327774280,1716472245725,-500.0,0.00019178,2]
[327774282,1716472245735,-500.0,0.00019178,2]
[327774284,1716472245746,-577.84595079,0.00019178,2]
[327774286,1716472245756,-577.84595079,0.00019178,2]
[327774288,1716472245768,-577.84595079,0.00019178,2]
[327774289,1716472245778,-577.84595079,0.00019178,2]
[327774291,1716472245791,-577.84595079,0.00019178,2]
[327774294,1716472245802,-577.84595079,0.00019178,2]
[327774295,1716472245813,-577.84595079,0.00019178,2]
[327774297,1716472245824,-577.84595075,0.00019178,2]
[327774299,1716472245835,-231.05268876,0.00019178,2]
[327774301,1716472245846,-188.047818,0.00019178,2]
[327774303,1716472245857,-500.0,0.00019178,2]
[327774305,1716472245868,-500.9552429,0.00019178,2]
[327774308,1716472245885,-550.0,0.00019178,2]
[327774310,1716472245895,-253.50295969,0.00019178,2]
[327774311,1716472245906,-500.0,0.00019178,2]
[327774313,1716472245920,-500.0,0.00019178,2]
[327774315,1716472245932,-203.87776901,0.00019178,2]
[327774317,1716472245944,-500.0,0.00019178,2]
[327774319,1716472245957,-500.0,0.00019178,2]
[327774321,1716472245969,-393.09428688,0.00019178,2]
[327774323,1716472245981,-500.0,0.00019178,2]
[327774325,1716472245993,-500.0,0.00019178,2]
[327774327,1716472246012,-500.0,0.00019178,2]
[327774329,1716472246025,-500.0,0.00019178,2]
[327774331,1716472246037,-167.197509,0.00019178,2]
[327774333,1716472246051,-174.07393,0.00019178,2]
[327774335,1716472246064,-165.020028,0.00019178,2]
[327774337,1716472246076,-254.08509978,0.000199,2]
[327774340,1716472246088,-1450.9824822,0.00019988,2]
[327774342,1716472246115,-444.34829777,0.00019988,2]
[327774349,1716472246189,-825.53018692,0.00019988,2]
[327774351,1716472246200,-155.0,0.00019988,2]
[327774353,1716472246211,-155.0,0.00019989,2]
[327774355,1716472246224,-155.17989353,0.00019997,2]
[327774357,1716472246234,-237.79,0.0002,2]
[327774359,1716472246245,-200.79047486,0.0002,2]
[327774361,1716472246256,-22854.35930199,0.0002,2]
[327774363,1716472246269,-245.80563984,0.0002,2]
[327774365,1716472246279,-280.21188555,0.0002,2]
[327774367,1716472246289,-527.47550772,0.0002,4]
[327774369,1716472246300,-4229.61727132,0.00020365,2]
[327774374,1716472246312,-430.99752669,0.00020528,2]
[327774377,1716472246323,-923.09009791,0.00020912,2]
[327774381,1716472246333,-1496.35073913,0.00020912,2]
[327774384,1716472246344,-847.82419978,0.00020912,2]
[327774385,1716472246357,-309.35568163,0.00020913,2]
[327774387,1716472246368,-15000.0,0.00020913,2]
[327774389,1716472246380,-283.57661554,0.00020913,2]
[327774391,1716472246391,-1581.28176567,0.00021,2]
[327774393,1716472246402,-179.671762,0.00021918,2]
[327774395,1716472246412,-6207.4176583,0.00021918,2]
[327774397,1716472246423,-310.01480794,0.00022,2]
[327774399,1716472246435,-294.03302147,0.00022,2]
[327774402,1716472246446,-390.44065702,0.000223,2]
[327774404,1716472246456,-324.47984088,0.000223,6]
[327774408,1716472246470,-5275.52015912,0.000223,6]
[327774411,1716472246481,-368.4,0.00022415,3]
[327774414,1716472246492,-151.0,0.00022415,3]
[327774417,1716472246503,-179.671762,0.00022559,2]
[327774420,1716472246515,-155.1722617,0.00023,2]
[327774423,1716472246526,-254.08509978,0.00023117,2]
[327774426,1716472246537,-179.671762,0.000232,2]
[327774428,1716472246547,-368.4,0.00023416,3]
[327774431,1716472246557,-151.0,0.00023416,3]
[327774433,1716472246566,-496.0,0.00023588,2]